fUSD/lending_fUSD_20260421
["ID","MTS","AMOUNT","RATE_DAILY","PERIOD"]
[420907576,1776706231630,-150.0,8.582e-05,2]
[420907577,1776706231640,-150.0,8.761e-05,2]
[420907578,1776706231649,-200.0,8.813e-05,2]
[420907579,1776706231742,-166.47289116,8.813e-05,2]
[420907580,1776706231751,-610.3510203,8.813e-05,2]
[420907581,1776706231760,-250.0,8.823e-05,2]
[420907582,1776706231770,-155.55,8.823e-05,2]
[420907583,1776706231780,-1103.85013062,8.839e-05,3]
[420907584,1776706231790,-5434.8415,8.84e-05,2]
[420907585,1776706231799,-238987.56294677,8.84e-05,2]
[420907586,1776706231811,-30935.53973138,8.84e-05,2]
[420907587,1776706231822,-53331.01001601,8.84e-05,2]
[420907588,1776706231840,-308.29206342,8.84e-05,2]
[420907593,1776706238246,-500.0,8.839e-05,2]
[420907594,1776706238256,-500.0,8.839e-05,2]
[420907595,1776706238265,-159.58336322,8.839e-05,2]
[420907596,1776706238274,-317.76137337,8.839e-05,2]
[420907597,1776706238283,-3942.80318547,8.84e-05,2]
[420907598,1776706238293,-904.1372,8.84e-05,2]
[420907599,1776706238304,-1595.53872,8.84e-05,2]
[420907600,1776706238355,-863.98392149,8.84e-05,2]
[420907601,1776706238572,-1128.37587025,8.84e-05,2]
[420907602,1776706238584,-749217.38459866,8.84e-05,2]
[420907603,1776706238596,-75749.36394568,8.84e-05,2]
[420907604,1776706238608,-48993.48432967,8.84e-05,2]
[420907605,1776706238619,-1826.1386616,8.84e-05,2]
[420907680,1776706239969,-1087242.2639096,8.84e-05,2]
[420907681,1776706239978,-199175.91041052,8.84e-05,2]
[420907682,1776706240024,-669.84875136,8.84e-05,2]
[420907683,1776706240402,-526.82996744,8.84e-05,2]
[420907684,1776706240414,-9324.79362834,8.84e-05,2]
[420907685,1776706240459,-403.46388559,8.84e-05,2]
[420907686,1776706240470,-401.85213699,8.84e-05,2]
[420907687,1776706240516,-1759.03801693,8.84e-05,2]
[420907705,1776706246094,-161859.85470583,8.84e-05,2]
[420907706,1776706246153,-1027.23724345,8.84e-05,2]
[420907707,1776706246164,-961.05676293,8.84e-05,2]
[420907708,1776706246176,-2273.64543204,8.84e-05,2]
[420907709,1776706246267,-328.91662306,8.84e-05,2]
[420907710,1776706246377,-1579.54368736,8.84e-05,2]
[420907711,1776706246473,-240257.32572027,8.84e-05,2]
[420907712,1776706246532,-1598.53002754,8.84e-05,2]
[420907713,1776706246543,-94751.1990506,8.84e-05,2]
[420907714,1776706246555,-536.18546117,8.84e-05,2]
[420907715,1776706246567,-1373.19352138,8.84e-05,2]
[420907719,1776706246694,-3766.79534422,8.84e-05,2]
[420907720,1776706246706,-2809.05666219,8.84e-05,2]
[420907721,1776706246717,-387.93218086,8.84e-05,2]
[420907722,1776706246728,-3176.73699666,8.84e-05,2]
[420907723,1776706246739,-4748.91187939,8.84e-05,2]
[420907730,1776706396128,150.0,0.00013449,30]
[420907731,1776706396479,150.0,0.0001489,30]
[420907736,1776706785368,443.55,8.198e-05,2]
[420907762,1776706890154,1600.0,8.158e-05,2]
[420907790,1776707181221,183.57,6.507e-05,2]
[420907791,1776707181419,183.57,7.592e-05,2]
[420907792,1776707334296,166.66,8.283e-05,2]
[420907794,1776707431877,-150.0,8.298e-05,2]
[420907795,1776707431887,-192.46,8.498e-05,2]
[420907796,1776707432349,-150.0,8.5e-05,2]
[420907797,1776707432366,-166.66,8.557e-05,2]
[420907798,1776707432376,-183.57,8.676e-05,2]
[420907799,1776707432386,-500.0,8.713e-05,2]
[420907800,1776707432396,-500.0,8.713e-05,2]
[420907801,1776707432406,-500.83459898,8.713e-05,2]
[420907802,1776707432416,-500.0,8.713e-05,2]
[420907803,1776707432425,-810819.51501711,8.713e-05,2]
[420907804,1776707432437,-7676.45038368,8.713e-05,2]
[420907805,1776707432448,-43639.41550033,8.713e-05,2]
[420907806,1776707432459,-51056.36969888,8.713e-05,2]
[420907807,1776707432468,-1200.0,8.738e-05,2]
[420907808,1776707432478,-42411.11186398,8.739e-05,2]
[420907809,1776707432489,-386.89401997,8.739e-05,2]
[420907810,1776707432563,-625.05307491,8.739e-05,2]
[420907811,1776707432575,-934.45208279,8.739e-05,2]
[420907812,1776707432590,-1255.39034168,8.739e-05,2]
[420907813,1776707432602,-8859.18816415,8.739e-05,2]
[420907814,1776707432613,-685.28174376,8.739e-05,2]
[420907815,1776707432624,-370.97500365,8.739e-05,2]
[420907816,1776707432636,-1123.1044889,8.739e-05,2]
[420907819,1776707438009,-730.938443,8.739e-05,2]
[420907820,1776707438112,-48832.341186,8.739e-05,2]
[420907821,1776707438124,-1000.0,8.739e-05,2]
[420907822,1776707438217,-75749.36394568,8.739e-05,2]
[420907823,1776707438230,-2127.56901028,8.739e-05,2]
[420907828,1776707440978,-1583.41326918,8.739e-05,2]
[420907829,1776707440999,-1297.76647814,8.739e-05,2]
[420907830,1776707441010,-6122.8726898,8.739e-05,2]
[420907831,1776707441050,-507.18,8.739e-05,2]
[420907834,1776707445927,-1897.78658037,8.739e-05,2]
[420907835,1776707446018,-9680.35087356,8.739e-05,2]
[420907842,1776707446077,-553.5,8.739e-05,2]
[420907843,1776707446131,-1362.91705858,8.739e-05,2]
[420907851,1776707446265,-244136.24393412,8.739e-05,2]
[420907853,1776707446278,-451.05899901,8.739e-05,2]
[420907854,1776707446300,-1123.71239335,8.739e-05,2]
[420907855,1776707446364,-431.885,8.739e-05,2]
[420907856,1776707446375,-39581.10566083,8.739e-05,2]
[420907857,1776707446386,-804.94870996,8.739e-05,2]
[420907858,1776707446402,-5097.03247384,8.739e-05,2]
[420907859,1776707446413,-899.5839298,8.739e-05,2]
[420907860,1776707446428,-680.76275655,8.739e-05,2]
[420907861,1776707446439,-366452.75388794,8.739e-05,2]
[420907862,1776707446518,-911.3468412,8.739e-05,2]
[420907863,1776707446529,-1057.89460526,8.739e-05,2]
[420907864,1776707446583,-187.64947332,8.739e-05,2]
[420907865,1776707446595,-1143.02930338,8.739e-05,2]
[420907866,1776707446606,-1986.80407188,8.739e-05,2]
[420907867,1776707446618,-493.85555909,8.739e-05,2]
[420907868,1776707446629,-3772.11328209,8.739e-05,2]
[420907869,1776707446639,-150.0,8.739e-05,2]
[420907870,1776707446648,-180.0,8.739e-05,2]
[420907871,1776707446658,-2180.8311,8.74e-05,2]
[420907872,1776707446667,-595.1689,8.74e-05,2]
[420907873,1776707446676,-887.1341331,8.74e-05,2]
[420907874,1776707446688,-1360.92868899,8.74e-05,2]
[420907876,1776707466688,579.94622367,6.678e-05,2]
[420907877,1776707525573,513.0,6.678e-05,3]
[420907878,1776707532502,155.0,6.678e-05,3]
[420907879,1776707565275,1500.0,8.047e-05,2]
[420907880,1776707574585,1218.74,8.219e-05,2]
[420907881,1776707585931,487.0,8.219e-05,3]
[420907882,1776707590286,222.0,0.0001622,120]
[420907883,1776707969880,1852.42,7.976e-05,2]
[420907885,1776708027186,1116.55377633,7.976e-05,2]
[420907886,1776708027212,7373.95622367,7.976e-05,2]
[420907888,1776708133374,1528.66,8.242e-05,2]
[420907889,1776708138705,4678.17,8.228e-05,2]
[420907890,1776708242066,150.0,8.221e-05,2]
[420907894,1776708452813,150.0,8.221e-05,2]
[420907895,1776708481339,2000.0,8.219e-05,2]
[420907896,1776708525456,150.0,8.223e-05,2]
[420907897,1776708621329,500.0,7.847e-05,2]
[420907902,1776708632949,-150.0,8.431e-05,2]
[420907903,1776708632959,-150.0,8.585e-05,2]
[420907904,1776708632968,-260.4081,8.61e-05,2]
[420907905,1776708633014,-939.5919,8.61e-05,2]
[420907906,1776708633023,-9873.81000796,8.611e-05,2]
[420907907,1776708633034,-836.39291566,8.611e-05,2]
[420907908,1776708633148,-40109.42007638,8.611e-05,2]
[420907909,1776708633157,-150.0,8.612e-05,2]
[420907910,1776708633167,-300.0,8.612e-05,2]
[420907911,1776708633176,-2500.0,8.613e-05,2]
[420907912,1776708633186,-77736.168,8.613e-05,2]
[420907913,1776708633195,-871.01112257,8.613e-05,2]
[420907914,1776708633205,-871.01112257,8.637e-05,2]
[420907915,1776708633215,-4647.8221142,8.66e-05,2]
[420907916,1776708633225,-871.01112257,8.66e-05,2]
[420907917,1776708633234,-194.3,8.673e-05,2]
[420907918,1776708633243,-167.86370094,8.703e-05,2]
[420907919,1776708633252,-501.08118823,8.703e-05,2]
[420907920,1776708633262,-500.0,8.703e-05,2]
[420907921,1776708633272,-500.0,8.703e-05,2]
[420907922,1776708633282,-500.0,8.703e-05,2]
[420907923,1776708633291,-500.0,8.703e-05,2]
[420907924,1776708633301,-500.0,8.703e-05,2]
[420907925,1776708633310,-500.0,8.703e-05,2]
[420907926,1776708633319,-500.0,8.711e-05,2]
[420907927,1776708633329,-260.06743709,8.711e-05,2]
[420907928,1776708633338,-500.0,8.711e-05,2]
[420907929,1776708633349,-500.0,8.711e-05,2]
[420907930,1776708633360,-500.0,8.711e-05,2]
[420907931,1776708633369,-500.0,8.711e-05,2]
[420907932,1776708633378,-500.0,8.711e-05,2]
[420907933,1776708633388,-500.0,8.711e-05,2]
[420907934,1776708633397,-500.0,8.711e-05,2]
[420907935,1776708633407,-500.0,8.711e-05,2]
[420907936,1776708633416,-500.0,8.711e-05,2]
[420907937,1776708633426,-500.0,8.711e-05,2]
[420907938,1776708633435,-500.0,8.711e-05,2]
[420907939,1776708633444,-500.0,8.711e-05,2]
[420907940,1776708633454,-500.0,8.711e-05,2]
[420907941,1776708633464,-500.0,8.711e-05,2]
[420907942,1776708633474,-500.0,8.711e-05,2]
[420907943,1776708633484,-500.0,8.711e-05,2]
[420907944,1776708633494,-500.0,8.711e-05,2]
[420907945,1776708633503,-500.0,8.711e-05,2]
[420907946,1776708633513,-500.0,8.711e-05,2]
[420907947,1776708633523,-500.0,8.711e-05,2]
[420907948,1776708633532,-500.0,8.711e-05,2]
[420907949,1776708633542,-500.0,8.711e-05,2]
[420907950,1776708633551,-500.0,8.711e-05,2]
[420907951,1776708633561,-500.0,8.711e-05,2]
[420907952,1776708633570,-500.0,8.711e-05,2]
[420907953,1776708633580,-500.0,8.711e-05,2]
[420907954,1776708633589,-500.0,8.711e-05,2]
[420907955,1776708633599,-500.0,8.711e-05,2]
[420907956,1776708633609,-500.0,8.711e-05,2]
[420907957,1776708633618,-500.0,8.711e-05,2]
[420907958,1776708633627,-500.0,8.711e-05,2]
[420907959,1776708633637,-500.0,8.711e-05,2]
[420907960,1776708633646,-500.0,8.711e-05,2]
[420907961,1776708633656,-500.0,8.711e-05,2]
[420907962,1776708633666,-500.0,8.711e-05,2]
[420907963,1776708633675,-500.0,8.711e-05,2]
[420907964,1776708633685,-500.0,8.711e-05,2]
[420907965,1776708633694,-500.0,8.711e-05,2]
[420907966,1776708633704,-500.0,8.711e-05,2]
[420907967,1776708633713,-500.0,8.711e-05,2]
[420907968,1776708633723,-500.0,8.711e-05,2]
[420907969,1776708633732,-500.0,8.711e-05,2]
[420907970,1776708633741,-22.45494075,8.711e-05,2]
[420907971,1776708633754,-477.54505925,8.711e-05,2]
[420907972,1776708633763,-500.0,8.711e-05,2]
[420907973,1776708633773,-500.0,8.711e-05,2]
[420907974,1776708633782,-500.0,8.711e-05,2]
[420907975,1776708633791,-475.94159241,8.711e-05,2]
[420907976,1776708633800,-500.0,8.711e-05,2]
[420907977,1776708633809,-500.0,8.711e-05,2]
[420907978,1776708633819,-500.0,8.711e-05,2]
[420907979,1776708633828,-500.0,8.711e-05,2]
[420907980,1776708633837,-500.0,8.711e-05,2]
[420907981,1776708633846,-500.0,8.711e-05,2]
[420907982,1776708633856,-500.0,8.711e-05,2]
[420907983,1776708633865,-500.0,8.711e-05,2]
[420907984,1776708633874,-500.0,8.711e-05,2]
[420907985,1776708633884,-500.0,8.711e-05,2]
[420907986,1776708633893,-500.0,8.711e-05,2]
[420907987,1776708633903,-250.0,8.711e-05,2]
[420907988,1776708633912,-500.0,8.711e-05,2]
[420907989,1776708633921,-500.0,8.711e-05,2]
[420907990,1776708633931,-500.0,8.711e-05,2]
[420907991,1776708633940,-500.0,8.711e-05,2]
[420907992,1776708633950,-500.0,8.711e-05,2]
[420907993,1776708633960,-500.0,8.711e-05,2]
[420907994,1776708633971,-500.0,8.711e-05,2]
[420907995,1776708633980,-500.0,8.711e-05,2]
[420907996,1776708633989,-500.0,8.711e-05,2]
[420907997,1776708633998,-500.0,8.711e-05,2]
[420907998,1776708634008,-500.0,8.711e-05,2]
[420907999,1776708634017,-500.0,8.711e-05,2]
[420908000,1776708634026,-2775.453,8.711e-05,2]
[420908001,1776708634035,-189.659,8.711e-05,2]
[420908002,1776708634045,-460.0,8.712e-05,2]
[420908003,1776708634055,-250.0,8.713e-05,2]
[420908004,1776708634064,-500.0,8.713e-05,2]
[420908005,1776708634074,-500.0,8.713e-05,2]
[420908006,1776708634083,-500.0,8.725e-05,2]
[420908007,1776708634092,-2402.5148656,8.726e-05,2]
[420908008,1776708634102,-415.188331,8.726e-05,2]
[420908009,1776708634111,-77644.51078501,8.726e-05,2]
[420908010,1776708634252,-182.77921109,8.725e-05,2]
[420908011,1776708634262,-61292.84670244,8.726e-05,2]
[420908012,1776708634273,-463.60708434,8.726e-05,2]
[420908023,1776708638262,-452.58554506,8.725e-05,2]
[420908024,1776708638272,-1002.17445494,8.726e-05,2]
[420908025,1776708638283,-1900.0,8.726e-05,2]
[420908026,1776708638295,-75749.36394568,8.726e-05,2]
[420908027,1776708638307,-7822.84464089,8.726e-05,2]
[420908028,1776708638316,-41170.63968878,8.726e-05,2]
[420908029,1776708638328,-1826.1386616,8.726e-05,2]
[420908030,1776708638367,-374.66604673,8.726e-05,2]
[420908031,1776708638379,-720.01455073,8.726e-05,2]
[420908032,1776708638799,-469.73578931,8.726e-05,2]
[420908033,1776708638811,-974.33676083,8.726e-05,2]
[420908034,1776708638822,-1137.84124984,8.726e-05,2]
[420908035,1776708638861,-441.19199998,8.726e-05,2]
[420908036,1776708638872,-899.74850456,8.726e-05,2]
[420908037,1776708638891,-3903.83753928,8.726e-05,2]
[420908046,1776708640387,-3300.0,8.726e-05,2]
[420908047,1776708640399,-2228.1457929,8.726e-05,2]
[420908048,1776708640441,-262.7300056,8.726e-05,2]
[420908049,1776708640495,-259.44471363,8.726e-05,2]
[420908050,1776708640871,-550.85370982,8.726e-05,2]
[420908051,1776708640976,-524.33443169,8.726e-05,2]
[420908052,1776708640990,-1705.82064318,8.726e-05,2]
[420908053,1776708641030,-1190.66890873,8.726e-05,2]
[420908084,1776708644606,-520.45652898,8.726e-05,2]
[420908085,1776708644671,150.0,8.221e-05,2]
[420908086,1776708644684,-1578.34776064,8.726e-05,2]
[420908087,1776708644695,-121461.43146895,8.726e-05,2]
[420908088,1776708644707,-58900.0,8.726e-05,2]
[420908089,1776708644744,-827.75733248,8.726e-05,2]
[420908090,1776708644755,-19061.33326077,8.726e-05,2]
[420908096,1776708646099,-4452.09999987,8.612e-05,2]
[420908097,1776708646154,-1180.95304529,8.612e-05,2]
[420908098,1776708646166,-9230.62057225,8.612e-05,2]
[420908099,1776708646177,-16245.50111901,8.612e-05,2]
[420908100,1776708646189,-345.53625,8.612e-05,2]
[420908101,1776708646200,-42584.7058532,8.612e-05,2]
[420908102,1776708646265,-3000.0,8.612e-05,2]
[420908103,1776708646276,-1434.61950838,8.612e-05,2]
[420908104,1776708646288,-400.88914376,8.612e-05,2]
[420908105,1776708646429,-4174.70184722,8.612e-05,2]
[420908106,1776708646484,-1942.68185695,8.612e-05,2]
[420908110,1776708646681,-608.21731146,8.612e-05,2]
[420908120,1776708711509,150.0,8.226e-05,2]
[420908121,1776708729191,463.0,8.226e-05,3]
[420908122,1776708788717,440.0,8.226e-05,3]
[420908123,1776708845888,150.0,8.225e-05,2]
[420908124,1776708848922,418.0,8.226e-05,3]
[420908125,1776708911240,397.0,8.226e-05,3]
[420908126,1776708911409,154.0,8.226e-05,3]
[420908127,1776708913178,150.0,8.221e-05,2]
[420908128,1776708966989,377.0,8.226e-05,3]
[420908129,1776709048294,150.0,8.225e-05,2]
[420908130,1776709085210,358.0,8.226e-05,3]
[420908131,1776709085745,200.0,8.025e-05,2]
[420908132,1776709114253,150.0,8.22e-05,2]
[420908134,1776709148398,355.0,8.226e-05,3]
[420908135,1776709207724,338.0,8.226e-05,3]
[420908136,1776709208283,154.0,8.226e-05,3]
[420908137,1776709235068,150.0,8.22e-05,2]
[420908138,1776709267317,321.0,8.226e-05,3]
[420908139,1776709325105,305.0,8.226e-05,3]
[420908140,1776709338493,158.0,8.226e-05,3]
[420908141,1776709368676,150.0,8.22e-05,2]
[420908142,1776709379186,1600.0,7.956e-05,2]
[420908143,1776709391044,289.0,8.226e-05,3]
[420908144,1776709446483,275.0,8.226e-05,3]
[420908145,1776709452806,158.0,8.226e-05,3]
[420908146,1776709480735,815.3,7.917e-05,2]
[420908147,1776709493958,150.0,8.22e-05,2]
[420908148,1776709507650,261.0,8.226e-05,3]
[420908149,1776709507858,154.0,8.226e-05,3]
[420908150,1776709562870,150.0,8.22e-05,2]
[420908151,1776709568699,248.0,8.226e-05,3]
[420908153,1776709688667,236.0,8.226e-05,3]
[420908154,1776709710852,183.57,6.327e-05,2]
[420908155,1776709714160,150.0,8.22e-05,2]
[420908156,1776709747055,224.0,8.226e-05,3]
[420908157,1776709751174,200.0,8.088e-05,2]
[420908158,1776709782455,150.0,8.22e-05,2]
[420908160,1776709812455,213.0,8.226e-05,3]
[420908161,1776709812792,154.0,8.226e-05,3]
[420908162,1776709832245,-1200.0,8.509e-05,2]
[420908163,1776709832255,-150.0,8.509e-05,2]
[420908164,1776709832264,-601.87210122,8.51e-05,2]
[420908165,1776709832276,-785.81555945,8.51e-05,2]
[420908166,1776709832305,-1605.99198305,8.51e-05,2]
[420908167,1776709832316,-82791.06403708,8.51e-05,2]
[420908168,1776709832328,-32329.74980169,8.51e-05,2]
[420908169,1776709832339,-74123.19671751,8.51e-05,2]
[420908170,1776709832349,-300.0,8.51e-05,2]
[420908171,1776709832358,-14343.0593,8.511e-05,2]
[420908172,1776709832368,-2500.0,8.511e-05,2]
[420908173,1776709832378,-99052.97887719,8.511e-05,2]
[420908174,1776709832390,-1254.41808677,8.511e-05,2]
[420908175,1776709832414,-1009.784997,8.511e-05,2]
[420908176,1776709832425,-1271.14161176,8.511e-05,2]
[420908177,1776709832441,-983.58493712,8.511e-05,2]
[420908178,1776709832453,-3808.49999999,8.511e-05,2]
[420908180,1776709838798,-451.15504761,8.511e-05,2]
[420908181,1776709838966,-11979.75265951,8.511e-05,2]
[420908182,1776709838978,-2632.67534785,8.511e-05,2]
[420908183,1776709839187,-1318.75819923,8.511e-05,2]
[420908184,1776709839199,-4134.16891772,8.511e-05,2]
[420908185,1776709839210,-75749.36394568,8.511e-05,2]
[420908186,1776709839222,-48993.48432967,8.511e-05,2]
[420908187,1776709839233,-1826.1386616,8.511e-05,2]
[420908392,1776709842244,-480.53080747,8.511e-05,2]
[420908393,1776709842255,-535.94538832,8.511e-05,2]
[420908394,1776709842266,-4368.552554,8.511e-05,2]
[420908395,1776709842523,-2801.30178774,8.511e-05,2]
[420908410,1776709843530,-246256.47138251,8.511e-05,2]
[420908411,1776709843589,-758.56,8.511e-05,2]
[420908417,1776709846281,-5508.00000712,8.511e-05,2]
[420908418,1776709846395,-4813.38169941,8.511e-05,2]
[420908422,1776709942436,150.0,8.22e-05,2]
[420908423,1776709982624,150.0,8.409e-05,2]
[420908424,1776709987709,500.0,8.409e-05,2]
[420908425,1776709987770,473.64951894,8.409e-05,2]
[420908426,1776709987802,500.0,8.409e-05,2]
[420908427,1776709987891,500.0,8.409e-05,2]
[420908428,1776709988371,202.0,8.22e-05,3]
[420908429,1776710000072,500.0,8.409e-05,2]
[420908430,1776710000110,500.0,8.409e-05,2]
[420908431,1776710000158,500.0,8.409e-05,2]
[420908432,1776710000194,500.0,8.409e-05,2]
[420908433,1776710000231,500.0,8.409e-05,2]
[420908434,1776710000275,500.0,8.409e-05,2]
[420908435,1776710000315,500.0,8.409e-05,2]
[420908436,1776710000396,500.0,8.409e-05,2]
[420908437,1776710000491,500.0,8.409e-05,2]
[420908438,1776710000526,500.0,8.409e-05,2]
[420908439,1776710000579,500.0,8.409e-05,2]
[420908440,1776710000615,500.0,8.409e-05,2]
[420908441,1776710000709,500.0,8.409e-05,2]
[420908442,1776710000776,500.0,8.409e-05,2]
[420908443,1776710000820,500.0,8.409e-05,2]
[420908444,1776710000861,24.36048106,8.409e-05,2]
[420908445,1776710000889,475.63951894,8.409e-05,2]
[420908446,1776710000926,500.0,8.409e-05,2]
[420908447,1776710000963,500.0,8.409e-05,2]
[420908448,1776710000999,500.0,8.409e-05,2]
[420908449,1776710001036,500.0,8.409e-05,2]
[420908450,1776710001072,530.60982174,8.409e-05,2]
[420908451,1776710001113,500.0,8.409e-05,2]
[420908452,1776710001148,500.0,8.409e-05,2]
[420908453,1776710001189,500.0,8.409e-05,2]
[420908454,1776710001225,500.0,8.409e-05,2]
[420908455,1776710001261,500.0,8.409e-05,2]
[420908456,1776710001305,500.0,8.409e-05,2]
[420908457,1776710001393,500.0,8.409e-05,2]
[420908458,1776710011556,150.0,8.22e-05,2]
[420908459,1776710017232,500.0,8.409e-05,2]
[420908460,1776710017275,500.0,8.409e-05,2]
[420908461,1776710017317,500.0,8.409e-05,2]
[420908462,1776710017355,500.0,8.409e-05,2]
[420908463,1776710017419,500.0,8.409e-05,2]
[420908464,1776710017464,500.0,8.409e-05,2]
[420908465,1776710017518,343.76065932,8.409e-05,2]
[420908466,1776710017549,156.23934068,8.409e-05,2]
[420908467,1776710026246,187.5261292,8.409e-05,2]
[420908468,1776710027752,195.86385252,8.409e-05,2]
[420908469,1776710035480,542.43158259,8.409e-05,2]
[420908471,1776710038656,500.0,8.409e-05,2]
[420908472,1776710038714,500.0,8.409e-05,2]
[420908473,1776710038971,500.0,8.409e-05,2]
[420908474,1776710039025,413.16689332,8.409e-05,2]
[420908475,1776710043284,500.0,8.409e-05,2]
[420908476,1776710043340,500.0,8.409e-05,2]
[420908477,1776710048459,599.76509777,8.409e-05,2]
[420908478,1776710048518,500.0,8.409e-05,2]
[420908479,1776710076053,199.99654414,8.409e-05,2]
[420908480,1776710101131,1200.0,8.409e-05,2]
[420908481,1776710107375,154.0,8.409e-05,3]
[420908482,1776710107583,192.0,8.409e-05,3]
[420908483,1776710141193,150.0,8.22e-05,2]
[420908484,1776710162871,150.0,8.409e-05,2]
[420908485,1776710207512,150.0,8.22e-05,2]
[420908486,1776710211921,163.0,8.409e-05,3]
[420908487,1776710228056,182.0,8.409e-05,3]
[420908488,1776710288257,173.0,8.409e-05,3]
[420908489,1776710324245,1500.0,7.776e-05,2]
[420908490,1776710342634,150.0,8.409e-05,2]
[420908491,1776710344205,150.0,8.22e-05,2]
[420908492,1776710345600,500.0,8.409e-05,2]
[420908493,1776710345723,165.0,8.409e-05,3]
[420908494,1776710345805,500.0,8.409e-05,2]
[420908495,1776710345933,512.82295369,8.409e-05,2]
[420908496,1776710358709,500.0,8.409e-05,2]
[420908497,1776710358750,500.0,8.409e-05,2]
[420908498,1776710358807,500.0,8.409e-05,2]
[420908499,1776710358851,500.0,8.409e-05,2]
[420908500,1776710359142,253.06098218,8.409e-05,2]
[420908505,1776710378702,500.0,8.409e-05,2]
[420908506,1776710378807,500.0,8.409e-05,2]
[420908507,1776710379106,339.21682533,8.409e-05,2]
[420908508,1776710482106,150.0,8.22e-05,2]
[420908509,1776710572651,1852.42,7.774e-05,2]
[420908510,1776710603467,150.0,8.22e-05,2]
[420908511,1776710674551,150.0,8.22e-05,2]
[420908512,1776710717474,5387.37,8.219e-05,2]
[420908514,1776710808829,150.0,8.22e-05,2]
[420908515,1776710863440,-152.0,8.233e-05,7]
[420908516,1776710863470,-500.0,8.288e-05,2]
[420908517,1776710863498,-500.0,8.288e-05,2]
[420908518,1776710863526,-500.0,8.288e-05,2]
[420908519,1776710863555,-500.0,8.288e-05,2]
[420908520,1776710863583,-500.0,8.288e-05,2]
[420908521,1776710863611,-500.0,8.288e-05,2]
[420908522,1776710863640,-500.0,8.288e-05,2]
[420908523,1776710863668,-500.0,8.288e-05,2]
[420908524,1776710863698,-500.0,8.288e-05,2]
[420908525,1776710863727,-196.01,8.288e-05,2]
[420908526,1776710866672,-303.99,8.288e-05,2]
[420908527,1776710866702,-500.0,8.288e-05,2]
[420908528,1776710866733,-500.0,8.288e-05,2]
[420908529,1776710866762,-500.0,8.288e-05,2]
[420908530,1776710866791,-170.10723715,8.288e-05,2]
[420908531,1776710866820,-150.0,8.288e-05,2]
[420908532,1776710866850,-150.0,8.288e-05,2]
[420908533,1776710866879,-150.0,8.288e-05,2]
[420908534,1776710866908,-150.0,8.288e-05,2]
[420908535,1776710866939,-215.90236649,8.288e-05,2]
[420908536,1776710866968,-150.0,8.288e-05,2]
[420908537,1776710866998,-155.98173,8.288e-05,2]
[420908538,1776710867028,-500.0,8.288e-05,2]
[420908539,1776710867057,-500.0,8.288e-05,2]
[420908540,1776710867087,-500.0,8.288e-05,2]
[420908541,1776710867116,-308.04733272,8.288e-05,2]
[420908542,1776710869343,-191.95266728,8.288e-05,2]
[420908543,1776710869372,-500.0,8.288e-05,2]
[420908544,1776710869402,-413.1239262,8.288e-05,2]
[420908545,1776710869431,-217.32642867,8.288e-05,2]
[420908546,1776710869460,-150.0,8.288e-05,2]
[420908547,1776710869490,-159.9987667,8.288e-05,2]
[420908548,1776710869519,-500.0,8.288e-05,2]
[420908549,1776710869548,-500.0,8.288e-05,2]
[420908550,1776710869577,-251.43631384,8.288e-05,2]
[420908551,1776710869605,-500.0,8.288e-05,2]
[420908552,1776710869634,-500.0,8.288e-05,2]
[420908553,1776710869663,-500.0,8.288e-05,2]
[420908554,1776710869693,-500.0,8.288e-05,2]
[420908555,1776710872347,-500.0,8.288e-05,2]
[420908556,1776710872377,-500.0,8.288e-05,2]
[420908557,1776710872407,-500.0,8.288e-05,2]
[420908558,1776710872438,-500.0,8.288e-05,2]
[420908559,1776710872468,-500.0,8.288e-05,2]
[420908560,1776710872500,-500.0,8.288e-05,2]
[420908561,1776710872532,-500.0,8.288e-05,2]
[420908562,1776710872563,-500.0,8.288e-05,2]
[420908563,1776710872594,-500.0,8.288e-05,2]
[420908564,1776710872626,-500.0,8.288e-05,2]
[420908565,1776710878053,150.0,8.22e-05,2]
[420908569,1776710996541,150.0,8.22e-05,2]
[420908570,1776711009469,150.0,8.219e-05,2]
[420908571,1776711009520,224.29176276,8.219e-05,2]
[420908572,1776711009617,150.0,8.219e-05,2]